bitfinex-derivatives/quotes_ETHF0:USTF0_20260118
["timestamp","ask_amount","ask_price","bid_price","bid_amount"]
[1768720008111,0.14555862,3315.5,3314.5,0.00286873]
[1768720020827,0.13490683,3315.2,3313.1,7.20829217]
[1768720021022,0.13490683,3314.9,3313.7,0.97140207]
[1768720021222,0.13490683,3314.9,3313.9,0.97140207]
[1768720021825,0.13490683,3314.9,3313.9,0.97414088]
[1768720025337,0.13490683,3314.9,3313.9,0.00273881]
[1768720065964,0.13490683,3314.9,3313.9,0.97437898]
[1768720066171,0.00273999,3315.5,3313.9,0.97437898]
[1768720067673,0.00273999,3315.5,3314.3,0.97164017]
[1768720068167,0.1403511,3315.4,3314.3,0.97164017]
[1768720080974,0.00273999,3315.5,3314.3,0.97164017]
[1768720084987,0.00273999,3315.5,3314.3,3.98964017]
[1768720085483,0.00273999,3315.5,3314.8,0.9711119]
[1768720086785,0.1301257,3315.8,3314.8,0.9711119]
[1768720087788,0.1323483,3315.8,3314.8,0.9711119]
[1768720088779,0.1323483,3315.8,3314.6,0.9711119]
[1768720089380,0.1323483,3315.8,3314.2,0.15093]
[1768720089580,0.1323483,3315.8,3314.5,0.9711119]
[1768720090387,0.1301257,3315.7,3314.5,0.9711119]
[1768720092480,0.1301257,3315.7,3314.7,0.9711119]
[1768720093589,0.0022226,3315.8,3314.7,0.9711119]
[1768720094490,0.1323483,3315.8,3314.7,0.9711119]
[1768720097991,0.1323483,3315.8,3314.5,1.677]
[1768720098194,0.1301257,3315.0,3313.8,1.823]
[1768720098378,0.1301257,3315.0,3313.9,2.65085071]
[1768720098584,0.1301257,3315.0,3314.1,0.9711119]
[1768720106302,0.13030744,3315.4,3314.1,0.9711119]
[1768720106500,0.13030744,3315.4,3314.3,0.9711119]
[1768720107507,0.13030744,3315.4,3314.5,0.9711119]
[1768720108707,0.13030744,3315.0,3313.9,1.67973881]
[1768720110104,0.13030744,3315.0,3313.9,0.00273881]
[1768720110602,0.13030744,3315.0,3313.9,0.97385071]
[1768720112906,0.13030744,3314.6,3313.4,0.006036]
[1768720113294,0.13030744,3314.6,3313.5,0.9711119]
[1768720113697,1.10141934,3315.0,3313.5,0.9711119]
[1768720113896,1.10141934,3315.0,3313.5,0.97378418]
[1768720114204,0.13030744,3314.9,3313.5,0.97378418]
[1768720114590,0.9711119,3314.8,3313.5,0.97378418]
[1768720114794,0.13030744,3314.7,3313.5,0.97378418]
[1768720121905,0.13030744,3314.7,3313.7,0.9711119]
[1768720128318,0.13030744,3314.7,3313.5,0.97378418]
[1768720140016,0.13737961,3315.3,3313.7,0.9711119]
[1768720140220,0.9711119,3315.1,3313.7,0.9711119]
[1768720140420,1.06999298,3315.0,3313.7,0.9711119]
[1768720145432,0.13737961,3314.8,3313.5,0.97378418]
[1768720146733,0.13737961,3315.1,3313.7,0.9711119]
[1768720146926,1.07117963,3315.0,3313.7,0.9711119]
[1768720147126,1.07117963,3314.9,3313.7,0.9711119]
[1768720147334,0.13737961,3315.1,3313.5,0.00267228]
[1768720147537,1.07117335,3315.0,3313.5,0.00267228]
[1768720147733,1.07117335,3314.9,3313.5,0.00267228]
[1768720147937,0.13737961,3315.1,3313.5,0.00267228]
[1768720148136,1.20855359,3315.0,3313.5,0.00267228]
[1768720148336,1.07117398,3314.9,3313.5,0.00267228]
[1768720148541,0.13737961,3315.0,3313.5,0.00267228]
[1768720148736,1.07117114,3314.9,3313.5,0.00267228]
[1768720148936,0.13737961,3315.0,3313.5,0.00267228]
[1768720149137,1.07117114,3314.9,3313.5,0.00267228]
[1768720149337,0.13737961,3315.0,3313.5,0.00267228]
[1768720149539,1.07116826,3314.9,3313.5,0.00267228]
[1768720149838,0.13737961,3315.0,3313.5,0.00267228]
[1768720150033,1.0711682,3314.9,3313.5,0.00267228]
[1768720150232,0.13737961,3315.0,3313.5,0.00267228]
[1768720150440,1.07116574,3314.9,3313.5,0.00267228]
[1768720150633,0.13737961,3315.0,3313.5,0.00267228]
[1768720150833,1.07116601,3314.9,3313.5,0.00267228]
[1768720151033,0.13737961,3315.0,3313.5,0.00267228]
[1768720151239,1.071166,3314.9,3313.5,0.00267228]
[1768720151433,0.13737961,3315.0,3313.5,0.00267228]
[1768720151633,1.07116296,3314.9,3313.5,0.00267228]
[1768720151839,0.13737961,3315.0,3313.5,0.00267228]
[1768720152032,1.20854257,3314.9,3313.5,0.00267228]
[1768720152234,0.13737961,3314.9,3313.5,0.00267228]
[1768720154444,1.07111335,3314.8,3313.5,0.00267228]
[1768720154644,0.13737961,3314.7,3313.5,0.00267228]
[1768720174867,1.10911738,3314.7,3313.5,0.00267228]
[1768720175063,0.13665652,3314.6,3313.5,0.00267228]
[1768720179969,0.13665652,3314.6,3313.4,0.006036]
[1768720180177,0.13665652,3313.7,3312.0,0.15103]
[1768720181175,0.13665652,3313.7,3312.0,0.15487333]
[1768720195286,0.13665652,3313.7,3312.0,0.29375476]
[1768720195981,0.13665652,3313.7,3312.1,0.13888143]
[1768720196184,0.1311113,3314.1,3312.1,0.13888143]
[1768720197187,0.1311113,3314.1,3312.2,0.13888143]
[1768720197786,0.1311113,3314.1,3312.1,0.15102]
[1768720201586,0.1311113,3314.1,3312.1,0.28990143]
[1768720208190,0.1311113,3313.9,3312.1,0.28990143]
[1768720209390,0.97255754,3313.7,3312.3,0.97255754]
[1768720209991,0.1311113,3313.9,3312.3,0.97255754]
[1768720210195,0.97255754,3313.7,3312.3,0.97255754]
[1768720213200,0.1311113,3313.9,3312.3,0.97255754]
[1768720213399,0.97255754,3313.7,3312.3,0.97255754]
[1768720214497,0.1311113,3314.4,3312.3,0.13888143]
[1768720214802,0.97255754,3314.1,3312.7,0.97255754]
[1768720215302,1.10366884,3314.1,3312.7,0.97255754]
[1768720216701,0.1311113,3314.1,3312.7,0.97255754]
[1768720218601,0.1311113,3314.1,3312.1,0.29702]
[1768720218807,0.97255754,3313.6,3312.2,0.97255754]
[1768720218999,1.10366884,3313.6,3312.2,0.97255754]
[1768720223005,1.10366884,3313.6,3312.1,1.26957754]
[1768720225609,0.97255754,3313.3,3312.1,0.29702]
[1768720225910,0.97596502,3313.3,3312.1,0.29702]
[1768720226206,0.00340748,3313.3,3312.1,0.29702]
[1768720227002,0.00340748,3313.3,3312.1,1.26957754]
[1768720228713,0.00340748,3313.3,3312.1,1.12357754]
[1768720231112,0.13793613,3313.2,3312.1,0.15102]
[1768720231411,0.97255754,3312.7,3311.2,0.97255754]
[1768720231710,1.11049367,3312.9,3311.4,0.97255754]
[1768720232212,0.13793613,3312.8,3311.4,0.97255754]
[1768720232405,0.13793613,3312.8,3311.4,0.97628799]
[1768720235313,0.13793613,3312.8,3311.5,0.97255754]
[1768720240621,0.97255754,3312.3,3311.4,0.00373045]
[1768720240919,0.14006333,3312.5,3311.4,0.00373045]
[1768720247725,0.14006333,3312.5,3311.4,0.97628799]
[1768720252729,0.14256357,3313.0,3311.6,0.97255754]
[1768720254527,0.14256357,3312.9,3311.6,0.97255754]
[1768720256725,0.14256357,3312.7,3311.4,0.00373045]
[1768720257032,1.11512111,3312.4,3311.4,0.00373045]
[1768720257221,0.14256357,3312.4,3311.4,0.00373045]
[1768720302082,0.14256357,3312.4,3311.0,0.15107]
[1768720303084,0.14256357,3312.4,3311.0,0.15402114]
[1768720315183,0.14256357,3312.4,3311.0,0.00295114]
[1768720318799,0.13879095,3312.1,3311.0,0.00295114]
[1768720319087,0.13879095,3311.9,3310.6,1.678]
[1768720319291,0.13879095,3311.7,3310.6,1.678]
[1768720319687,0.13879095,3311.5,3310.2,3.021]
[1768720319885,0.13879095,3311.5,3310.2,3.02413984]
[1768720320092,0.13879095,3311.3,3310.2,0.00313984]
[1768720327706,0.13879095,3311.3,3309.8,0.15113]
[1768720328605,0.13879095,3311.3,3309.8,0.15476215]
[1768720329907,0.13879095,3311.3,3309.8,0.00363215]
[1768720331200,0.13879095,3311.0,3309.8,0.00363215]
[1768720333405,0.13879095,3310.8,3309.8,0.00363215]
[1768720333606,0.14250347,3310.8,3309.8,0.00363215]
[1768720341212,0.14250347,3310.8,3309.4,0.006043]
[1768720341513,0.13879095,3310.4,3309.4,0.006043]
[1768720342402,0.13879095,3310.4,3309.4,0.00887853]
[1768720350120,0.97422615,3310.0,3309.1,0.96165524]
[1768720350311,0.97422615,3310.0,3307.7,0.13513802]
[1768720350312,0.97422615,3309.2,3307.7,0.13513802]
[1768720350512,0.15114,3309.7,3306.8,0.13513802]
[1768720350814,0.97422615,3308.3,3306.9,0.13513802]
[1768720351011,0.97422615,3308.7,3307.4,0.13513802]
[1768720351209,0.97666247,3308.7,3307.4,0.13767495]
[1768720352416,0.00243632,3308.7,3307.8,0.13513802]
[1768720353314,0.97422615,3308.3,3307.4,0.00253693]
[1768720354218,0.00243632,3308.7,3306.7,0.13513802]
[1768720354219,0.97422615,3308.0,3306.7,0.13513802]
[1768720354411,0.01190274,3308.7,3306.7,0.13513802]
[1768720354606,0.97422615,3308.1,3306.8,0.13513802]
[1768720355018,0.00243632,3308.7,3307.5,0.97422615]
[1768720355221,0.00243632,3308.7,3307.5,0.13614345]
[1768720355419,0.97422615,3308.5,3307.5,0.13614345]
[1768720355722,0.97422615,3307.9,3307.5,0.0021237]
[1768720355920,0.97422615,3307.9,3307.0,0.13401975]
[1768720356918,0.97422615,3307.9,3307.0,0.13725682]
[1768720357219,0.97422615,3307.7,3307.0,0.00323707]
[1768720357426,0.97422615,3307.7,3306.5,0.13401975]
[1768720358123,0.97422615,3307.5,3306.5,0.13401975]
[1768720358317,0.97422615,3307.3,3306.5,0.13632151]
[1768720358819,0.97422615,3307.5,3306.5,0.13632151]
[1768720359525,0.00243632,3308.7,3307.2,0.97422615]
[1768720359724,0.97422615,3308.2,3307.0,0.13401975]
[1768720361525,0.97666247,3308.7,3307.2,0.13401975]
[1768720362622,0.00243632,3308.7,3307.4,1.1082459]
[1768720362836,0.00243632,3308.7,3307.5,0.13401975]
[1768720365634,0.00243632,3308.7,3307.6,1.1082459]
[1768720366227,0.00243632,3308.7,3307.7,0.13401975]
[1768720368531,0.97422615,3308.6,3307.1,0.13401975]
[1768720368729,0.97422615,3308.3,3307.1,0.13401975]
[1768720370529,0.00243632,3308.7,3307.1,0.13401975]
[1768720370739,0.97422615,3308.3,3307.1,0.13401975]
[1768720373138,0.97422615,3308.6,3307.2,0.15196172]
[1768720375731,0.00243632,3308.7,3307.2,0.15196172]
[1768720375927,0.00243632,3308.7,3307.7,0.97422615]
[1768720376141,0.00243632,3308.7,3307.7,1.12618787]
[1768720376334,0.00243632,3308.7,3307.7,0.15196172]
[1768720380142,0.45053701,3308.6,3307.7,0.15196172]
[1768720380339,0.00243632,3308.7,3307.7,0.15196172]
[1768720381038,0.00243632,3308.7,3307.7,1.12618787]
[1768720381339,0.00243632,3308.7,3307.8,0.15196172]
[1768720381929,0.44290211,3308.6,3307.8,0.15196172]
[1768720382130,0.00243632,3308.7,3307.8,0.15196172]
[1768720385649,0.00243632,3308.7,3308.0,0.15196172]
[1768720391850,0.97422615,3309.2,3308.0,0.15196172]
[1768720392054,0.41852734,3309.1,3308.0,0.15196172]
[1768720392350,0.97422615,3309.3,3308.0,0.15196172]
[1768720392557,0.41854247,3309.2,3308.0,0.15196172]
[1768720392746,0.41854247,3309.1,3308.0,0.15196172]
[1768720392950,0.97422615,3309.1,3308.0,0.15196172]
[1768720395361,0.00334923,3309.2,3308.0,0.15196172]
[1768720395560,0.41852202,3309.1,3308.0,0.15196172]
[1768720395855,0.00334923,3309.2,3308.0,0.15196172]
[1768720396058,0.41852239,3309.1,3308.0,0.15196172]
[1768720396260,0.00334923,3309.2,3308.0,0.15196172]
[1768720396455,0.41852432,3309.1,3308.0,0.15196172]
[1768720396753,0.00334923,3309.2,3308.0,0.15196172]
[1768720396953,0.41852395,3309.1,3308.0,0.15196172]
[1768720397158,0.00334923,3309.2,3308.0,0.15196172]
[1768720411762,0.9752979,3310.2,3308.0,0.15196172]
[1768720411961,1.46766307,3310.1,3308.0,0.15196172]
[1768720412167,1.46766307,3310.0,3308.0,0.15196172]
[1768720412369,1.46766307,3309.9,3308.0,0.15196172]
[1768720412569,0.39858614,3309.8,3308.0,0.15196172]
[1768720412870,0.39858614,3309.7,3308.0,0.15196172]
[1768720413061,0.0028622,3309.8,3308.0,0.15196172]
[1768720413262,0.39849412,3309.7,3308.0,0.15196172]
[1768720413558,0.0028622,3309.8,3308.0,0.15196172]
[1768720413764,0.39850421,3309.7,3308.0,0.15196172]
[1768720413962,0.0028622,3309.8,3308.0,0.15196172]
[1768720414163,0.39850421,3309.7,3308.0,0.15196172]
[1768720414361,0.0028622,3309.8,3308.0,0.15196172]
[1768720414557,0.39847811,3309.7,3308.0,0.15196172]
[1768720414763,0.0028622,3309.8,3308.0,0.15196172]
[1768720414965,0.39848245,3309.7,3308.0,0.15196172]
[1768720415161,0.0028622,3309.8,3308.0,0.15196172]
[1768720415377,0.39845316,3309.7,3308.0,0.15196172]
[1768720415571,0.0028622,3309.8,3308.0,0.15196172]
[1768720417973,0.0028622,3309.8,3308.4,0.16907866]
[1768720457512,0.97496127,3309.7,3308.4,0.16907866]
[1768720461313,0.0028622,3309.8,3308.4,0.16907866]
[1768720461515,0.97496127,3309.7,3308.4,0.16907866]
[1768720462710,0.97496127,3309.7,3308.6,0.18950394]
[1768720463014,0.0028622,3309.8,3308.6,0.18950394]
[1768720475725,0.0028622,3309.8,3308.8,0.19156978]
[1768720481726,0.0028622,3309.8,3309.0,0.19156978]
[1768720481928,0.0028622,3309.8,3309.0,0.1943512]
[1768720510656,0.97496127,3310.4,3309.0,0.1943512]
[1768720510858,1.43797188,3310.3,3309.0,0.1943512]
[1768720511153,1.43797188,3310.2,3309.0,0.1943512]
[1768720511356,0.97496127,3310.4,3309.0,0.1943512]
[1768720511558,1.43796364,3310.3,3309.1,0.19411258]
[1768720511756,1.43796364,3310.2,3309.1,0.19411258]
[1768720511958,0.00354687,3310.3,3309.1,0.19411258]
[1768720512158,1.43796915,3310.2,3309.1,0.19411258]
[1768720512358,0.00354687,3310.3,3309.1,0.19411258]
[1768720512546,1.4379477,3310.2,3309.1,0.19411258]
[1768720512751,0.00354687,3310.3,3309.1,0.19411258]
[1768720512961,1.43794771,3310.2,3309.1,0.19411258]
[1768720513147,0.00354687,3310.3,3309.1,0.19411258]
[1768720513352,1.43789831,3310.2,3309.1,0.19411258]
[1768720513552,0.00354687,3310.3,3309.1,0.19411258]
[1768720513753,1.43805454,3310.2,3309.1,0.19411258]
[1768720514063,0.00354687,3310.3,3309.3,0.19411258]
[1768720514259,1.43803165,3310.2,3309.3,0.19411258]
[1768720514465,0.00354687,3310.3,3309.3,0.19411258]
[1768720514660,1.43805436,3310.2,3309.3,0.19411258]
[1768720514861,0.00354687,3310.3,3309.3,0.19411258]
[1768720515063,1.43805223,3310.2,3309.3,0.19411258]
[1768720515263,0.00354687,3310.3,3309.3,0.19411258]
[1768720515568,1.43802681,3310.2,3309.3,0.19411258]
[1768720515766,0.00354687,3310.3,3309.3,0.19411258]
[1768720515958,1.43802663,3310.2,3309.3,0.19411258]
[1768720516159,0.97850814,3310.3,3309.3,0.19411258]
[1768720516356,1.43798873,3310.2,3309.3,0.19411258]
[1768720516567,0.97496127,3310.1,3309.0,0.00278142]
[1768720516762,0.97496127,3310.1,3309.0,0.196894]
[1768720517374,0.00354687,3310.3,3309.0,0.196894]
[1768720517573,1.43799095,3310.2,3309.0,0.196894]
[1768720517774,0.00354687,3310.3,3309.0,0.196894]
[1768720517976,1.43799123,3310.2,3309.0,0.196894]
[1768720518165,0.00354687,3310.3,3309.0,0.196894]
[1768720518365,1.43795871,3310.2,3309.0,0.196894]
[1768720518665,0.00354687,3310.3,3309.0,0.196894]
[1768720518965,1.43795722,3310.2,3309.0,0.196894]
[1768720519169,0.00354687,3310.3,3309.0,0.196894]
[1768720519374,1.4379318,3310.2,3309.0,0.196894]
[1768720519567,0.00354687,3310.3,3309.0,0.196894]
[1768720519768,1.43793117,3310.2,3309.0,0.196894]
[1768720519969,0.00354687,3310.3,3309.0,0.196894]
[1768720520170,1.43793226,3310.2,3309.0,0.196894]
[1768720520370,0.00354687,3310.3,3309.0,0.196894]
[1768720520572,1.43791311,3310.2,3309.0,0.196894]
[1768720520771,0.00354687,3310.3,3309.0,0.196894]
[1768720520977,1.43791311,3310.2,3309.0,0.196894]
[1768720521178,0.00354687,3310.3,3309.0,0.196894]
[1768720521476,1.43790835,3310.2,3309.0,0.196894]
[1768720521677,0.00354687,3310.3,3309.0,0.196894]
[1768720521877,1.43505552,3310.2,3309.0,0.196894]
[1768720522178,0.00354687,3310.3,3309.0,0.196894]
[1768720522474,1.43504703,3310.2,3309.0,0.196894]
[1768720522681,0.00354687,3310.3,3309.0,0.196894]
[1768720522978,1.43505454,3310.2,3309.0,0.196894]
[1768720523277,0.00354687,3310.3,3309.0,0.196894]
[1768720523474,1.43505966,3310.2,3309.0,0.196894]
[1768720523777,0.00354687,3310.3,3309.0,0.196894]
[1768720552114,0.36938496,3310.2,3309.0,0.196894]
[1768720552311,0.00354687,3310.3,3309.0,0.196894]
[1768720552610,1.06678777,3310.2,3309.0,0.196894]
[1768720552909,0.00354687,3310.3,3309.0,0.196894]
[1768720553296,1.06691926,3310.2,3309.0,0.196894]
[1768720553499,0.00354687,3310.3,3309.0,0.196894]
[1768720553701,1.06691914,3310.2,3309.0,0.196894]
[1768720553902,0.00354687,3310.3,3309.0,0.196894]
[1768720554101,1.06692261,3310.2,3309.0,0.196894]
[1768720554396,0.00354687,3310.3,3309.0,0.196894]
[1768720554595,1.06692175,3310.2,3309.0,0.196894]
[1768720554898,0.00354687,3310.3,3309.0,0.196894]
[1768720555099,1.06692114,3310.2,3309.0,0.196894]
[1768720555298,0.00354687,3310.3,3309.0,0.196894]
[1768720555504,1.06691913,3310.2,3309.0,0.196894]
[1768720555702,0.00354687,3310.3,3309.0,0.196894]
[1768720555902,1.06692068,3310.2,3309.0,0.196894]
[1768720556110,0.00354687,3310.3,3309.0,0.196894]
[1768720556311,1.06691954,3310.2,3309.0,0.196894]
[1768720556512,0.00354687,3310.3,3309.0,0.196894]
[1768720556704,1.06691948,3310.2,3309.0,0.196894]
[1768720556905,0.00354687,3310.3,3309.0,0.196894]
[1768720557111,1.06691948,3310.2,3309.0,0.196894]
[1768720557317,0.00354687,3310.3,3309.0,0.196894]
[1768720557514,1.06691936,3310.2,3309.0,0.196894]
[1768720557812,0.00354687,3310.3,3309.0,0.196894]
[1768720558014,1.06691931,3310.2,3309.0,0.196894]
[1768720558215,0.00354687,3310.3,3309.0,0.196894]
[1768720558405,1.06691921,3310.2,3309.0,0.196894]
[1768720558600,0.00354687,3310.3,3309.0,0.196894]
[1768720558905,1.06691921,3310.2,3309.0,0.196894]
[1768720559105,0.00354687,3310.3,3309.0,0.196894]
[1768720559311,1.0669191,3310.2,3309.0,0.196894]
[1768720559615,0.00354687,3310.3,3309.0,0.196894]
[1768720559807,1.0669191,3310.2,3309.0,0.196894]
[1768720560009,0.00354687,3310.3,3309.0,0.196894]
[1768720560210,1.0669191,3310.2,3309.0,0.196894]
[1768720560414,0.00354687,3310.3,3309.0,0.196894]
[1768720560616,1.0669191,3310.2,3309.0,0.196894]
[1768720560817,0.00354687,3310.3,3309.0,0.196894]
[1768720561018,1.06692167,3310.2,3309.0,0.196894]
[1768720561219,0.00354687,3310.3,3309.0,0.196894]
[1768720561426,1.06692252,3310.2,3309.0,0.196894]
[1768720561719,0.00354687,3310.3,3309.0,0.196894]
[1768720561920,1.06692082,3310.2,3309.0,0.196894]
[1768720562219,0.00354687,3310.3,3309.0,0.196894]
[1768720562407,1.06691836,3310.2,3309.0,0.196894]
[1768720562609,0.00354687,3310.3,3309.0,0.196894]
[1768720562813,1.06691854,3310.2,3309.0,0.196894]
[1768720563118,0.97467473,3310.0,3309.0,0.00278142]
[1768720563319,1.4310605,3309.9,3308.5,0.20755008]
[1768720563518,0.97467473,3310.0,3308.5,0.20755008]
[1768720563720,1.42991113,3309.9,3308.5,0.20755008]
[1768720563915,0.97467473,3310.0,3308.5,0.20755008]
[1768720564120,1.42991113,3309.9,3308.5,0.20755008]
[1768720564319,0.97467473,3310.0,3308.5,0.21074791]
[1768720564511,1.42947951,3309.9,3308.5,0.21074791]
[1768720564712,0.97467473,3310.0,3308.5,0.21074791]
[1768720565020,1.42947944,3309.9,3308.5,0.21074791]
[1768720565220,0.97467473,3310.0,3308.5,0.21074791]
[1768720565421,1.06546825,3309.9,3308.5,0.21074791]
[1768720565611,0.97467473,3310.0,3308.5,0.21074791]
[1768720565811,1.06551774,3309.9,3308.5,0.21074791]
[1768720566011,0.97467473,3310.0,3308.5,0.21074791]
[1768720566214,1.06551673,3309.9,3308.5,0.21074791]
[1768720566415,0.97467473,3310.0,3308.5,0.21074791]
[1768720566622,1.06532971,3309.9,3308.5,0.21074791]
[1768720566919,0.97467473,3310.0,3308.5,0.21074791]
[1768720567120,1.06532971,3309.9,3308.5,0.21074791]
[1768720567417,0.97467473,3310.0,3308.5,0.21074791]
[1768720567618,1.06517735,3309.9,3308.5,0.21074791]
[1768720567820,0.97467473,3310.0,3308.5,0.21074791]
[1768720568018,1.06517824,3309.9,3308.5,0.21074791]
[1768720568220,0.97467473,3310.0,3308.5,0.21074791]
[1768720568522,1.06505339,3309.9,3308.5,0.21074791]
[1768720568820,0.97467473,3310.0,3308.5,0.21074791]
[1768720569021,1.06505363,3309.9,3308.5,0.21074791]
[1768720569215,0.97467473,3310.0,3308.5,0.21074791]
[1768720569414,1.06494961,3309.9,3308.5,0.21074791]
[1768720569614,0.97467473,3310.0,3308.5,0.21074791]
[1768720569817,1.06494961,3309.9,3308.5,0.21074791]
[1768720570017,0.97467473,3310.0,3308.5,0.21074791]
[1768720577931,0.97467473,3309.6,3308.5,0.21074791]
[1768720578228,1.16691182,3309.6,3307.5,0.15122]
[1768720579120,1.16691182,3309.6,3307.5,0.15388604]
[1768720579322,0.97523306,3309.2,3307.8,0.97523306]
[1768720580030,0.97523306,3309.2,3307.9,0.20755008]
[1768720582142,0.19223709,3309.6,3308.0,1.17976598]
[1768720582344,0.97523306,3309.4,3308.1,0.20453292]
[1768720583838,0.97523306,3309.2,3308.1,0.20453292]
[1768720585142,0.97523306,3309.2,3307.6,0.35574292]
[1768720585344,0.97523306,3309.0,3307.6,0.35574292]
[1768720588257,0.97523306,3309.0,3307.6,1.33097598]
[1768720588548,0.97523306,3308.8,3307.6,0.35574292]
[1768720589842,0.97523306,3308.8,3307.6,1.33097598]
[1768720590035,0.97523306,3308.8,3307.6,1.17976598]
[1768720590240,0.97523306,3308.8,3307.6,0.20453292]
[1768720591343,0.97523306,3308.8,3307.5,0.00266604]
[1768720591544,0.2075959,3309.0,3307.5,0.00266604]
[1768720591741,0.97523306,3308.7,3307.5,0.00266604]
[1768720593950,0.2075959,3309.5,3307.6,0.97523306]
[1768720594150,0.97523306,3309.1,3307.6,1.17976598]
[1768720594449,0.2075959,3309.5,3307.8,0.97523306]
[1768720594650,0.97523306,3309.3,3307.8,1.17976598]
[1768720595154,0.97523306,3309.1,3307.8,1.17976598]
[1768720595743,0.97523306,3309.1,3307.8,0.20453292]
[1768720596347,0.97523306,3309.0,3307.8,0.20453292]
[1768720600851,0.2075959,3309.5,3307.8,0.20453292]
[1768720601054,0.97523306,3309.1,3307.8,0.20453292]
[1768720602665,0.97523306,3309.1,3307.7,0.97523306]
[1768720602853,0.97523306,3309.1,3307.6,0.97523306]
[1768720603055,1.18607112,3309.1,3307.6,0.97523306]
[1768720603662,1.18607112,3309.1,3307.6,1.1889019]
[1768720604352,0.21083806,3309.5,3307.7,0.21366884]
[1768720604553,1.42892164,3309.4,3307.7,0.21366884]
[1768720604755,0.97523306,3309.1,3307.7,0.21366884]
[1768720606860,0.21083806,3309.4,3307.7,0.21366884]
[1768720607056,0.97523306,3309.1,3307.7,0.21366884]
[1768720614670,1.20135995,3309.3,3307.9,0.97523306]
[1768720614972,1.43136458,3309.2,3307.9,0.97523306]
[1768720615171,1.43136458,3309.1,3307.9,0.97523306]
[1768720615471,1.06766563,3309.0,3307.9,0.97523306]
[1768720615672,1.20135995,3309.3,3307.9,0.97523306]
[1768720615871,1.43169577,3309.2,3307.9,0.97523306]
[1768720616172,1.43169577,3309.1,3307.9,0.97523306]
[1768720616363,1.06791271,3309.0,3307.9,0.97523306]
[1768720616562,1.20135995,3309.3,3307.9,0.97523306]
[1768720616763,1.43189055,3309.2,3307.9,0.97523306]
[1768720616965,1.43189055,3309.1,3307.9,0.97523306]
[1768720617172,1.06805797,3309.0,3307.9,0.97523306]
[1768720617372,0.22612689,3309.3,3307.8,0.97523306]
[1768720617568,1.43215006,3309.2,3307.8,0.97523306]
[1768720617775,1.43215006,3309.1,3308.0,0.97523306]
[1768720617960,0.22612689,3309.3,3308.1,0.97523306]
[1768720618164,1.43219206,3309.2,3308.1,0.97523306]
[1768720618364,1.43219206,3309.1,3308.1,0.97523306]
[1768720618564,1.06828315,3309.0,3308.1,0.97523306]
[1768720618769,0.22612689,3309.3,3308.1,0.97523306]
[1768720618969,1.43258897,3309.2,3308.1,0.97523306]
[1768720619274,1.43258897,3309.1,3308.1,0.97523306]
[1768720619478,1.06857918,3309.0,3308.1,0.97523306]
[1768720619678,0.22612689,3309.3,3308.1,0.97523306]
[1768720619973,1.43273279,3309.2,3308.1,0.97523306]
[1768720620170,1.43273279,3309.1,3307.7,0.21366884]
[1768720620374,1.06868673,3309.0,3308.1,0.97523306]
[1768720620568,0.22612689,3309.3,3308.1,0.97523306]
[1768720620769,1.43273321,3309.2,3308.1,0.97523306]
[1768720621069,1.43273321,3309.1,3308.1,0.97523306]
[1768720621268,1.06868704,3309.0,3308.1,0.97523306]
[1768720621468,0.22612689,3309.3,3308.1,0.97523306]
[1768720621677,1.43268806,3309.2,3308.1,0.97523306]
[1768720621866,1.43268806,3309.1,3308.1,0.97523306]
[1768720622069,1.06865338,3309.0,3308.1,0.97523306]
[1768720622364,0.22612689,3309.3,3308.1,0.97523306]
[1768720622565,1.43265979,3309.2,3308.6,0.97523306]
[1768720622764,7.95180467,3309.9,3308.6,0.97523306]
[1768720622972,1.43285947,3309.8,3308.6,0.97523306]
[1768720623176,1.43285947,3309.7,3308.4,0.97523306]
[1768720623378,7.29923306,3309.9,3308.4,0.97523306]
[1768720623379,1.43285947,3309.6,3308.4,0.97523306]
[1768720623568,1.43285947,3309.5,3308.4,0.97523306]
[1768720623763,7.29923306,3309.9,3308.4,0.97523306]
[1768720623969,1.42418122,3309.8,3308.4,0.97523306]
[1768720624169,1.42418122,3309.7,3308.4,0.97523306]
[1768720624472,0.22612689,3310.1,3308.8,0.97523306]
[1768720624677,1.42384943,3310.0,3308.8,0.97523306]
[1768720624870,2.39908249,3309.9,3308.5,1.20170506]
[1768720625070,1.06774592,3309.8,3308.5,1.20170506]
[1768720625268,0.97523306,3310.0,3308.7,0.97523306]
[1768720625473,0.97523306,3309.8,3308.4,0.97523306]
[1768720625874,0.97523306,3309.8,3308.4,1.20170506]
[1768720629082,0.97523306,3309.6,3308.4,0.226472]
[1768720632682,0.97523306,3309.6,3308.2,0.97523306]
[1768720633386,1.20135995,3309.6,3308.2,0.97523306]
[1768720633583,0.22612689,3309.5,3308.2,0.97523306]
[1768720633885,0.97523306,3309.2,3308.0,0.226472]
[1768720634076,0.97523306,3309.2,3307.6,0.226472]
[1768720634386,0.97523306,3308.7,3307.6,0.226472]
[1768720638490,0.97523306,3308.5,3307.5,0.00266604]
[1768720639288,0.22612689,3308.9,3307.5,0.00266604]
[1768720641493,0.97551608,3309.2,3307.5,0.22913804]
[1768720641699,1.06225406,3309.1,3307.5,0.22913804]
[1768720641900,0.97551608,3309.2,3307.5,0.22913804]
[1768720642199,1.0622711,3309.1,3307.5,0.22913804]
[1768720642497,0.22612689,3309.3,3307.5,0.22913804]
[1768720642702,1.41743914,3309.2,3307.5,0.22913804]
[1768720642899,1.06221482,3309.1,3307.5,0.22913804]
[1768720643101,0.22612689,3309.3,3307.5,0.22913804]
[1768720643287,1.06216107,3309.2,3307.5,0.22913804]
[1768720643491,1.06216107,3309.1,3307.5,0.22913804]
[1768720643691,0.22612689,3309.3,3307.5,0.22913804]
[1768720643891,1.4172688,3309.2,3307.5,0.22913804]
[1768720644092,1.06208704,3309.1,3307.5,0.22913804]
[1768720644298,0.22612689,3309.3,3307.5,0.22913804]
[1768720644498,1.06191814,3309.2,3307.5,0.22913804]
[1768720644698,1.06191814,3309.1,3307.5,0.22913804]
[1768720644898,0.22612689,3309.3,3307.5,0.22913804]
[1768720645098,1.06191814,3309.2,3307.5,0.22913804]
[1768720645301,1.06191814,3309.1,3307.5,0.22913804]
[1768720645499,0.22612689,3309.3,3307.5,0.22913804]
[1768720645701,1.30124328,3309.2,3307.5,0.22913804]
[1768720645902,1.0618681,3309.1,3307.5,0.22913804]
[1768720646202,0.23937518,3309.2,3307.5,0.22913804]
[1768720646402,1.06181531,3309.1,3307.5,0.22913804]
[1768720646601,0.23937518,3309.2,3307.5,0.22913804]
[1768720646802,1.06181531,3309.1,3307.5,0.22913804]
[1768720647004,0.23937518,3309.2,3307.5,0.22913804]
[1768720647303,1.0618023,3309.1,3307.5,0.22913804]
[1768720647503,0.23937518,3309.2,3307.5,0.22913804]
[1768720647705,1.06177152,3309.1,3307.5,0.22913804]
[1768720647902,0.23937518,3309.2,3307.5,0.22913804]
[1768720648198,1.06177152,3309.1,3307.5,0.22913804]
[1768720648393,0.23937518,3309.2,3307.5,0.00266604]
[1768720648596,1.0616543,3309.1,3307.5,0.24213904]